bitfinex-derivatives/quotes_ETHF0:USTF0_20250830
["timestamp","ask_amount","ask_price","bid_price","bid_amount"]
[1756536010234,0.2902,4393.9,4393.8,0.2034]
[1756536010533,0.47895232,4393.9,4393.8,0.6114]
[1756536010928,3.2078,4394.5,4393.9,0.40962]
[1756536011131,3.2078,4394.5,4393.5,3.2078]
[1756536011132,3.394,4394.5,4394.4,0.3804]
[1756536011329,3.58271185,4394.5,4394.4,0.6114]
[1756536011628,3.87291185,4394.5,4394.4,0.6114]
[1756536012830,8.10047185,4394.5,4394.4,0.231]
[1756536013634,0.2902,4394.4,4394.3,0.161]
[1756536013936,0.1862,4394.3,4394.2,0.161]
[1756536014131,0.66511185,4394.3,4394.2,0.161]
[1756536014637,0.66511185,4394.3,4394.2,0.231]
[1756536015339,0.66511185,4394.3,4394.2,0.7164]
[1756536015839,0.37491185,4394.3,4394.2,0.231]
[1756536016439,0.66511185,4394.3,4394.2,0.231]
[1756536019535,0.4764,4394.3,4394.2,0.231]
[1756536019733,0.6646223,4394.3,4394.2,0.231]
[1756536020141,0.6646223,4394.3,4394.2,0.4344]
[1756536020435,0.66461099,4394.3,4394.2,0.231]
[1756536020939,0.66461099,4394.3,4393.5,3.4898]
[1756536021140,0.4764,4393.7,4393.6,0.4344]
[1756536021340,0.4764,4393.7,4393.6,0.7164]
[1756536021637,0.4764,4393.7,4393.6,0.4854]
[1756536021836,0.4764,4393.6,4393.5,3.2078]
[1756536022142,0.4764,4393.6,4393.5,3.4388]
[1756536027240,0.4764,4393.6,4393.5,3.6422]
[1756536027442,0.4764,4393.6,4393.5,3.9242]
[1756536032438,0.4764,4394.4,4394.3,0.2034]
[1756536032645,0.4764,4394.4,4394.3,0.231]
[1756536033538,0.4764,4394.4,4393.6,0.282]
[1756536033539,0.2902,4394.3,4393.6,0.282]
[1756536033737,0.2902,4394.3,4393.7,0.231]
[1756536034240,0.1862,4393.8,4393.7,0.7164]
[1756536034438,0.4764,4393.8,4393.7,0.7164]
[1756536036045,0.2902,4394.4,4393.8,0.282]
[1756536036646,0.4764,4393.9,4393.8,0.4854]
[1756536036847,0.4764,4393.9,4393.8,0.7164]
[1756536040652,0.1862,4393.9,4393.5,3.5081]
[1756536040855,0.2051,4393.7,4393.6,0.231]
[1756536041052,0.4848,4393.7,4393.6,0.7323]
[1756536042947,0.4848,4393.7,4393.6,0.5013]
[1756536043142,0.4848,4393.7,4393.6,0.7323]
[1756536043348,0.4848,4393.7,4393.6,0.201]
[1756536043551,0.4848,4393.7,4393.6,0.231]
[1756536045054,0.2051,4393.7,4393.6,0.231]
[1756536045756,0.4848,4393.7,4393.6,0.231]
[1756536046150,0.2051,4393.7,4392.9,0.3003]
[1756536046350,0.2797,4393.6,4393.0,0.231]
[1756536046650,0.4848,4393.2,4393.1,0.5013]
[1756536047456,0.2797,4393.9,4393.1,0.201]
[1756536047657,0.2797,4393.9,4393.2,0.3003]
[1756536047853,0.4848,4393.9,4393.8,0.201]
[1756536048055,0.4848,4393.9,4393.8,0.5013]
[1756536056155,3.2078,4394.5,4393.9,0.201]
[1756536056356,3.2078,4394.5,4394.4,0.5013]
[1756536056556,3.4875,4395.3,4395.2,0.201]
[1756536056751,3.4875,4395.3,4395.2,0.5013]
[1756536056954,3.2078,4395.3,4395.2,0.5013]
[1756536057751,0.2797,4395.9,4395.3,0.3003]
[1756536057949,0.4848,4395.9,4395.8,0.5013]
[1756536058754,0.4848,4395.9,4394.9,0.227]
[1756536059060,0.2797,4395.8,4395.1,0.3003]
[1756536059763,0.4848,4395.2,4395.1,0.5013]
[1756536059961,0.4848,4395.2,4395.1,0.201]
[1756536060455,0.4848,4394.9,4394.8,3.4388]
[1756536060958,0.4848,4394.9,4394.8,3.2078]
[1756536061659,0.4848,4394.9,4394.8,0.201]
[1756536061960,0.4848,4394.9,4394.8,0.5013]
[1756536062451,3.2078,4396.0,4394.8,0.201]
[1756536062657,0.2797,4395.9,4394.9,0.3003]
[1756536065261,0.2051,4395.0,4394.9,0.5013]
[1756536065461,0.4848,4395.0,4394.9,0.5013]
[1756536066357,0.4848,4395.0,4394.9,0.7323]
[1756536067564,0.3038,4395.9,4395.0,0.2988]
[1756536068258,0.3038,4395.9,4394.9,0.231]
[1756536068259,0.494,4395.9,4395.8,0.2052]
[1756536068564,0.494,4395.9,4395.8,0.504]
[1756536073268,0.494,4395.9,4395.8,0.2052]
[1756536073468,0.3038,4395.8,4395.1,0.2988]
[1756536073866,0.494,4395.8,4395.7,0.504]
[1756536074373,0.494,4395.4,4395.3,0.735]
[1756536074667,0.494,4395.4,4395.3,0.504]
[1756536076070,0.494,4395.4,4395.3,0.2052]
[1756536076370,0.494,4395.4,4395.2,0.231]
[1756536076869,0.494,4395.4,4395.2,0.5298]
[1756536077070,0.494,4395.3,4395.2,0.735]
[1756536078465,3.2078,4396.0,4395.2,0.735]
[1756536078466,0.1902,4395.4,4395.3,0.504]
[1756536078671,0.494,4395.4,4395.3,0.504]
[1756536079671,0.494,4395.4,4395.3,0.735]
[1756536080770,0.494,4395.9,4395.8,0.2052]
[1756536080970,0.494,4395.9,4395.8,0.504]
[1756536085076,3.2078,4396.0,4395.9,0.504]
[1756536085378,3.7018,4396.0,4395.9,0.504]
[1756536097288,3.5116,4396.0,4395.9,0.504]
[1756536097687,3.7072,4396.0,4395.9,0.504]
[1756536097889,0.4828,4395.9,4395.8,0.2048]
[1756536098186,0.4828,4395.9,4395.8,0.4941]
[1756536111490,0.4828,4395.9,4395.8,0.7251]
[1756536111691,0.4828,4395.9,4395.8,0.4941]
[1756536111894,0.4828,4395.9,4395.8,0.231]
[1756536112995,0.4828,4395.9,4395.8,0.7251]
[1756536117397,0.2872,4395.8,4395.4,3.4971]
[1756536117595,0.2872,4394.9,4394.3,0.2893]
[1756536117899,0.4828,4394.3,4394.0,0.2893]
[1756536118402,0.67677452,4394.2,4394.1,0.231]
[1756536119396,0.38957452,4394.2,4393.9,3.2078]
[1756536119704,0.67677452,4394.1,4394.0,0.5203]
[1756536120400,0.67677452,4394.1,4394.0,0.2893]
[1756536120701,0.67677452,4394.1,4393.9,3.2078]
[1756536120702,0.4828,4394.0,4393.9,3.2078]
[1756536120901,0.67663611,4394.0,4393.9,3.4388]
[1756536121801,0.67663611,4394.0,4393.9,0.231]
[1756536123099,0.4828,4394.0,4393.9,0.231]
[1756536123299,0.70655287,4394.0,4393.9,0.231]
[1756536124700,0.2872,4393.9,4393.4,3.2078]
[1756536124893,0.1956,4393.5,4392.8,3.2078]
[1756536125203,0.4828,4392.9,4392.8,3.7019]
[1756536125599,0.2872,4393.3,4392.8,3.9329]
[1756536125798,0.51058828,4393.2,4393.1,0.2048]
[1756536126106,0.70618828,4393.2,4393.1,0.7251]
[1756536128203,0.4956,4394.1,4394.0,0.2029]
[1756536128409,0.71866476,4394.1,4394.0,0.7251]
[1756536130005,0.22306476,4394.1,4394.0,0.7251]
[1756536130206,0.22306476,4394.1,4394.0,3.9329]
[1756536130404,0.4956,4394.8,4394.7,0.4941]
[1756536130600,0.2913,4395.9,4394.8,0.2912]
[1756536130799,0.42723464,4395.8,4395.7,0.2029]
[1756536131015,0.71853464,4395.8,4395.7,0.4941]
[1756536131404,0.71853464,4395.8,4395.7,0.2029]
[1756536132814,0.71853464,4395.8,4395.7,0.4941]
[1756536133910,0.71853821,4395.8,4395.7,0.4941]
[1756536134703,0.71853821,4395.8,4395.7,0.2029]
[1756536135414,0.71853821,4395.8,4395.7,0.4941]
[1756536136208,4.71853821,4395.8,4395.5,0.231]
[1756536136414,0.2043,4394.9,4394.8,0.202]
[1756536136608,0.4956,4394.8,4394.7,0.2029]
[1756536136809,0.4956,4394.8,4394.7,0.7251]
[1756536138115,0.2913,4395.9,4394.8,0.2912]
[1756536138315,0.2913,4395.7,4394.8,0.2912]
[1756536138510,0.22305976,4395.6,4394.8,0.2912]
[1756536138709,0.2913,4395.4,4394.8,0.2912]
[1756536138910,0.22305976,4395.3,4394.8,0.2912]
[1756536139110,0.4956,4395.3,4395.2,0.4941]
[1756536139312,0.7186962,4395.3,4395.2,0.4941]
[1756536139511,0.7186962,4395.3,4394.9,0.2912]
[1756536139713,0.4956,4395.0,4394.9,0.2912]
[1756536139917,0.2913,4394.9,4394.4,3.499]
[1756536140111,0.4956,4394.5,4394.4,0.4941]
[1756536140311,0.7186962,4394.5,4394.4,0.7251]
[1756536140914,0.71876188,4394.5,4394.4,0.7251]
[1756536141615,0.71876188,4394.5,4394.4,0.231]
[1756536142007,0.71876188,4394.5,4394.4,0.4339]
[1756536142413,0.71876188,4394.5,4394.4,0.7251]
[1756536144414,0.71893937,4394.5,4394.4,0.7251]
[1756536145021,0.71892949,4394.5,4394.4,0.7251]
[1756536145418,0.22332949,4394.5,4394.4,0.7251]
[1756536147724,0.22332949,4394.5,4394.4,3.9329]
[1756536155028,0.22369191,4395.1,4394.4,3.6417]
[1756536155235,0.22369191,4395.0,4394.4,3.6417]
[1756536155435,0.22369191,4394.9,4394.4,3.6417]
[1756536155736,0.22376713,4394.8,4394.7,0.2029]
[1756536155932,0.22376713,4394.8,4394.7,0.7251]
[1756536157940,0.22376713,4394.8,4394.7,5.13464]
[1756536158236,0.3077,4396.3,4396.0,0.1901]
[1756536158444,0.3077,4396.3,4396.2,0.4841]
[1756536158736,0.5111,4396.3,4396.2,0.6851]
[1756536158933,0.3077,4396.6,4396.2,0.6851]
[1756536159130,0.3077,4396.6,4396.3,0.294]
[1756536159645,0.5111,4396.6,4396.5,0.4841]
[1756536159938,0.5111,4396.6,4396.5,0.7151]
[1756536161336,0.5111,4396.6,4396.5,0.8948298]
[1756536161536,3.2078,4396.7,4396.5,0.4211]
[1756536161736,3.2078,4396.7,4396.6,0.4841]
[1756536161737,3.5155,4396.7,4396.6,0.4841]
[1756536161946,3.7189,4396.7,4396.6,0.4841]
[1756536164040,0.5111,4396.7,4396.6,0.4841]
[1756536169657,0.5111,4396.7,4396.6,0.231]
[1756536169948,0.5111,4396.7,4396.6,0.7151]
[1756536173350,0.5111,4396.7,4396.5,3.2078]
[1756536173351,0.2034,4395.5,4395.4,35.9778]
[1756536173654,0.5111,4395.5,4395.4,36.5028]
[1756536174047,0.5111,4395.5,4395.4,35.9778]
[1756536174340,0.5111,4395.5,4395.4,36.2088]
[1756536174747,0.5111,4395.5,4395.4,35.9778]
[1756536175052,0.5111,4395.5,4395.4,36.2088]
[1756536177251,0.72129047,4395.5,4395.4,36.2088]
[1756536178555,0.72129047,4395.5,4395.4,33.001]
[1756536178750,0.3077,4395.4,4394.7,3.5018]
[1756536178950,0.5111,4394.8,4394.7,3.6919]
[1756536179256,0.5111,4394.8,4394.7,3.9229]
[1756536182552,3.2078,4395.9,4394.7,3.6289]
[1756536182748,0.3077,4395.7,4394.8,0.294]
[1756536182950,0.3077,4395.5,4395.0,0.294]
[1756536183256,0.5111,4395.2,4395.1,0.7151]
[1756536183455,0.7175994,4395.2,4395.1,0.7151]
[1756536185460,0.2064994,4395.2,4395.1,0.7151]
[1756536185655,0.2064994,4395.5,4395.1,0.7151]
[1756536185855,0.3077,4395.3,4395.2,0.294]
[1756536186063,0.71764866,4395.3,4395.2,0.4841]
[1756536186361,0.71764866,4395.3,4395.2,0.231]
[1756536186962,0.71764866,4395.3,4395.2,0.7195]
[1756536187962,0.20654866,4395.3,4395.2,0.7195]
[1756536188658,0.20654866,4395.3,4395.2,5.35652]
[1756536188857,0.4817,4396.5,4396.4,0.4984]
[1756536189056,0.68822361,4396.5,4396.4,0.7294]
[1756536189758,0.68821061,4396.5,4396.4,0.7294]
[1756536190163,0.1971,4395.9,4395.8,0.4984]
[1756536190466,0.4817,4395.9,4395.8,0.7294]
[1756536191062,0.1971,4395.9,4395.8,0.7294]
[1756536191961,0.4817,4395.9,4395.8,0.7294]
[1756536192261,3.2078,4397.1,4395.9,0.2984]
[1756536192562,0.71859639,4397.0,4395.9,0.2984]
[1756536192864,0.2846,4396.8,4395.9,0.2984]
[1756536193065,0.2846,4396.6,4395.9,0.2984]
[1756536193266,0.40363639,4396.5,4396.4,0.2]
[1756536193465,0.68823639,4396.5,4396.4,0.7294]
[1756536194565,0.68823639,4396.5,4396.4,0.231]
[1756536195666,0.68823639,4396.5,4396.3,0.231]
[1756536195865,0.68823639,4396.4,4396.3,0.231]
[1756536196664,0.68823639,4396.4,4396.0,0.2984]
[1756536196665,0.68823639,4396.4,4396.2,0.231]
[1756536196864,0.40371184,4396.3,4396.2,0.231]
[1756536197065,0.68831184,4396.3,4396.2,0.231]
[1756536199970,0.68831184,4396.3,4396.2,0.5294]
[1756536200973,0.68831184,4396.3,4395.8,0.2984]
[1756536201176,0.4817,4395.4,4395.3,3.7062]
[1756536201474,0.4817,4395.4,4395.3,3.9372]
[1756536202572,0.2846,4396.5,4395.3,3.6388]
[1756536202774,0.2846,4396.3,4395.4,0.2984]
[1756536202968,0.2846,4396.1,4395.4,0.2984]
[1756536203170,0.20688545,4396.0,4395.4,0.2984]
[1756536203462,0.20688545,4396.0,4395.3,3.4388]
[1756536203463,0.68858545,4395.9,4395.8,0.4984]
[1756536203667,0.20688545,4395.9,4395.8,0.4984]
[1756536207472,0.68864143,4395.9,4395.8,0.4984]
[1756536207972,0.68864186,4395.9,4395.8,0.4984]
[1756536210976,0.4817,4395.0,4394.9,0.4984]
[1756536211169,0.4817,4395.0,4394.9,0.7294]
[1756536211566,0.2846,4395.3,4395.0,0.2984]
[1756536211767,0.2846,4396.2,4395.1,0.4984]
[1756536211971,0.20700097,4396.1,4396.0,0.4008]
[1756536212178,0.20700097,4396.1,4396.0,0.6318]
[1756536212876,0.49160097,4396.1,4396.0,0.6318]
[1756536213078,0.68870097,4396.1,4396.0,0.6318]
[1756536213974,0.68870097,4396.1,4395.4,3.2078]
[1756536214280,0.4817,4395.6,4395.5,0.6318]
[1756536214478,0.4817,4395.6,4395.5,0.231]
[1756536214881,0.4817,4395.6,4395.5,0.431]
[1756536215178,0.4817,4395.6,4395.5,0.6318]
[1756536215982,0.4817,4395.6,4395.5,0.4008]
[1756536216184,0.4817,4395.6,4395.5,0.6318]
[1756536216579,0.2846,4396.2,4395.6,0.2008]
[1756536216786,0.4817,4396.2,4396.1,0.4008]
[1756536218186,0.4817,4396.2,4396.1,0.2]
[1756536218386,0.4817,4396.2,4395.6,0.2008]
[1756536220185,0.4817,4396.2,4396.1,0.3865]
[1756536222682,0.4817,4396.2,4396.1,0.1857]
[1756536222887,0.4817,4396.2,4395.6,0.2008]
[1756536223876,0.3882138,4396.1,4396.0,0.1857]
[1756536224079,0.6941138,4396.1,4396.0,0.3865]
[1756536227686,0.1944138,4396.1,4396.0,0.3865]
[1756536227892,0.1944138,4396.1,4396.0,4.61398]
[1756536228187,0.1944138,4396.1,4396.0,4.3865]
[1756536228390,3.5137,4396.8,4396.0,4.41318]
[1756536228595,0.6940126,4396.7,4396.6,0.3865]
[1756536228890,0.6940127,4396.7,4396.6,0.3865]
[1756536229390,0.4997,4396.7,4396.6,0.3865]
[1756536229593,0.69394501,4396.7,4396.6,0.3865]
[1756536231590,0.19424501,4396.7,4396.6,0.3865]
[1756536232095,0.69394501,4396.7,4396.6,0.3865]
[1756536234903,0.3059,4396.6,4396.3,0.2008]
[1756536235092,0.4997,4396.6,4396.5,0.3865]
[1756536235293,0.69372525,4396.6,4396.5,0.3865]
[1756536236193,0.4997,4396.1,4395.7,3.2078]
[1756536236493,0.4997,4395.9,4395.8,0.6165]
[1756536237791,0.4997,4396.8,4396.7,0.3865]
[1756536237996,0.693706,4396.8,4396.7,0.6165]
[1756536238295,0.693706,4396.8,4396.7,0.4157]
[1756536238488,0.693706,4396.8,4396.7,0.6165]
[1756536239189,0.693706,4396.8,4396.7,0.4157]
[1756536239398,0.4997,4396.8,4396.7,0.4157]
[1756536239599,0.69366513,4396.8,4396.7,0.4157]
[1756536239795,0.69366513,4396.8,4396.7,0.6165]
[1756536240198,0.69366513,4396.8,4396.7,0.23]
[1756536240395,0.3059,4396.7,4395.8,0.2008]
[1756536240598,0.38776513,4396.6,4396.5,0.3865]
[1756536240797,0.38776513,4396.6,4396.5,0.6165]
[1756536240998,0.69366513,4396.6,4396.5,0.6165]
[1756536241193,0.69366513,4396.6,4396.5,0.4157]
[1756536241694,0.69366513,4396.6,4396.5,0.6165]
[1756536242599,0.69366513,4396.6,4396.5,0.4157]
[1756536242794,0.69366513,4396.6,4396.5,0.23]
[1756536242992,0.3059,4396.5,4395.8,0.2008]
[1756536243191,3.2078,4397.4,4395.8,0.3865]
[1756536243192,0.4997,4395.9,4395.8,0.3865]
[1756536243392,0.4997,4395.9,4395.8,0.80181712]
[1756536243597,0.3059,4397.3,4395.9,0.2008]
[1756536243797,0.3059,4397.1,4395.9,0.2008]
[1756536243994,0.3059,4396.9,4395.9,0.2008]
[1756536244196,0.3059,4396.7,4395.9,0.2008]
[1756536244394,0.4997,4396.5,4396.4,0.1857]
[1756536244597,0.68971644,4396.5,4396.4,0.6165]
[1756536246500,0.68971644,4396.5,4395.9,0.2008]
[1756536246701,0.4997,4396.1,4396.0,0.6165]
[1756536246900,0.68971644,4396.1,4396.0,0.6165]
[1756536247498,0.68971644,4396.1,4396.0,0.3865]
[1756536247704,0.1896,4395.8,4395.7,3.2078]
[1756536247894,0.4819,4395.8,4395.7,3.4378]
[1756536248099,0.69351363,4395.8,4395.7,3.4378]
[1756536249004,0.69353426,4395.8,4395.7,3.4378]
[1756536249204,0.69353426,4395.8,4395.7,3.2078]
[1756536249507,0.69353426,4395.8,4395.7,3.4378]
[1756536254507,0.69353426,4395.8,4395.7,3.8317]
[1756536255111,0.69353426,4395.8,4395.7,3.4378]
[1756536255311,0.69353426,4395.8,4395.7,3.6314]
[1756536255508,0.69353426,4395.8,4395.7,3.8317]
[1756536255810,0.69353426,4395.8,4395.7,0.6239]
[1756536256004,0.69353426,4395.8,4395.3,32.9583]
[1756536256005,0.2923,4395.7,4395.3,32.9583]
[1756536256205,0.4819,4395.4,4395.3,36.1661]
[1756536256399,0.69361687,4395.4,4395.3,36.3961]
[1756536259013,0.21171687,4395.4,4395.3,36.3961]
[1756536259514,0.2923,4395.7,4395.6,0.1936]
[1756536259715,0.503991,4395.7,4395.6,0.6245]
[1756536260107,0.693591,4395.7,4395.6,0.6245]
[1756536260408,0.69359053,4395.7,4395.6,0.6245]
[1756536263217,0.69357322,4395.7,4395.6,0.6245]
[1756536267316,0.21167322,4395.7,4395.6,0.6245]
[1756536267520,0.50397322,4395.7,4395.6,0.6245]
[1756536269417,0.21167322,4395.7,4395.6,0.6245]
[1756536270026,0.21167322,4395.7,4395.6,4.85199999]
[1756536270320,0.2923,4396.9,4396.4,0.40939]
[1756536270518,3.2078,4397.5,4396.5,3.66525]
[1756536270716,0.4819,4397.4,4396.6,0.40937]
[1756536270922,3.2078,4398.1,4397.0,3.2078]
[1756536271219,0.2923,4398.0,4397.1,0.23]
[1756536271419,0.4819,4398.0,4397.1,0.4574]
[1756536271619,0.4819,4398.0,4397.1,0.23]
[1756536271814,0.4819,4398.0,4397.2,0.2274]
[1756536272216,0.4819,4398.0,4397.3,0.2274]
[1756536272525,0.2923,4397.9,4397.5,3.2078]
[1756536272715,1.8,4398.2,4397.5,3.2078]
[1756536272915,0.4819,4398.1,4397.5,3.2078]
[1756536274023,0.1896,4398.1,4397.5,3.2078]
[1756536274224,0.1896,4398.1,4397.5,3.3856905]
[1756536274420,1.8,4398.2,4397.5,3.3856905]
[1756536274921,0.1896,4397.9,4397.5,3.2078]
[1756536275120,0.1896,4397.6,4397.5,3.2078]
[1756536275424,0.1896,4397.6,4396.9,35.9688]
[1756536275425,0.4819,4397.6,4396.9,35.9688]
[1756536275624,0.4819,4397.1,4397.0,0.23]
[1756536276620,0.2923,4397.0,4396.9,35.9688]
[1756536276821,0.2274,4398.0,4396.9,36.38402692]
[1756536277021,0.3076,4397.9,4396.9,36.38402692]
[1756536277226,0.3076,4398.0,4396.9,36.38402692]
[1756536277530,3.2078,4398.1,4396.9,36.38402692]
[1756536277725,0.3076,4397.9,4396.9,36.38402692]
[1756536278131,3.2078,4398.1,4396.9,36.38402692]
[1756536278331,0.535,4398.0,4396.9,36.38402692]
[1756536278830,0.3076,4398.0,4396.9,36.38402692]
[1756536279528,0.3076,4397.8,4396.9,36.1988]
[1756536279724,0.5096,4397.0,4396.9,35.9688]
[1756536279943,0.5096,4397.0,4396.9,36.1988]
[1756536280131,0.3076,4398.0,4396.9,36.1988]
[1756536280326,3.2078,4398.1,4396.9,36.1988]
[1756536280522,0.3076,4397.9,4396.9,36.38221239]
[1756536280726,0.5096,4397.9,4397.0,0.2274]
[1756536280925,0.5096,4397.9,4397.1,0.23]
[1756536281324,3.7174,4397.9,4397.1,0.23]
[1756536282233,0.3076,4397.7,4397.1,0.23]
[1756536282431,0.53155492,4397.6,4397.1,0.23]
[1756536282634,0.22395492,4397.5,4397.2,0.2274]
[1756536282833,0.3076,4397.6,4397.1,0.23]
[1756536283035,0.3076,4397.4,4397.1,0.45740999]
[1756536283233,0.5096,4397.8,4397.2,0.2274]
[1756536283535,0.53151866,4397.7,4397.4,3.2078]
[1756536283728,0.3076,4397.7,4397.5,0.23]
[1756536285027,1.8,4398.2,4397.5,0.23]
[1756536285228,0.3076,4398.0,4397.5,0.23]
[1756536285423,0.3076,4397.8,4397.5,0.23]
[1756536285631,0.53147122,4397.7,4397.5,0.23]
[1756536285936,0.3076,4398.1,4397.5,0.23]
[1756536286131,0.5096,4397.9,4397.5,0.23]
[1756536286330,0.3076,4397.7,4397.5,0.23]
[1756536286531,0.5096,4397.6,4397.5,0.23]
[1756536287634,0.73347264,4397.6,4397.5,0.23]
[1756536287833,0.42587264,4397.6,4397.4,3.2078]
[1756536288039,0.5096,4397.6,4397.5,0.23]
[1756536288234,0.202,4397.0,4396.9,33.0417]
[1756536288532,0.73354116,4397.0,4396.9,32.991]
[1756536288932,0.53154116,4397.0,4396.9,33.2717]
[1756536290130,0.22394116,4397.0,4396.9,33.2717]
[1756536290336,3.2078,4398.0,4397.2,0.1908]
[1756536290537,0.5096,4397.4,4397.3,0.7015]
[1756536290733,0.73363865,4397.4,4397.3,0.7015]
[1756536291736,0.73368025,4397.4,4397.3,0.7015]
[1756536294339,0.73368025,4397.4,4397.3,0.23]
[1756536296336,0.73368025,4397.4,4397.0,0.2807]
[1756536296337,0.73368025,4397.4,4396.9,35.9688]
[1756536296641,0.5096,4397.1,4397.0,0.23]
[1756536296939,0.73368025,4397.1,4397.0,0.23]
[1756536298644,0.73368025,4397.1,4397.0,0.7015]
[1756536301645,0.73462711,4397.1,4397.0,0.7015]
[1756536302045,0.22042557,4397.1,4397.0,0.7015]
[1756536302244,0.3076,4397.4,4397.0,0.7015]
[1756536302443,0.73001138,4397.3,4397.2,0.1908]
[1756536302636,0.73001138,4397.3,4397.2,0.7015]
[1756536302637,0.22041138,4397.3,4397.2,0.7015]
[1756536302841,0.22041138,4397.3,4397.2,4.92890999]
[1756536303750,0.22041138,4397.3,4397.2,4.7015]
[1756536306251,0.3076,4398.1,4398.0,0.4715]
[1756536306552,0.3076,4398.1,4398.0,0.7015]
[1756536306955,0.5096,4398.1,4398.0,0.7015]
[1756536307956,0.5096,4398.1,4398.0,0.4715]
[1756536308157,0.5096,4398.1,4398.0,0.7015]
[1756536308351,0.5096,4398.1,4398.0,0.4715]
[1756536308551,0.5096,4398.1,4398.0,0.7015]
[1756536309461,0.5096,4398.1,4398.0,0.4715]
[1756536309759,0.5096,4398.1,4398.0,0.7015]
[1756536313157,0.1941,4396.7,4396.6,2.09103127]
[1756536313359,3.6309,4396.7,4395.3,0.3046]
[1756536313555,3.2078,4396.0,4393.9,0.3046]
[1756536313751,3.2078,4394.9,4394.0,0.234]
[1756536314056,3.2078,4394.9,4394.1,0.7435]
[1756536314360,3.2078,4394.9,4394.8,0.2049]
[1756536314561,3.2078,4394.9,4394.8,0.5095]
[1756536314962,3.2078,4394.9,4394.6,0.234]
[1756536315564,3.43534,4394.9,4394.6,0.234]
[1756536315758,3.2078,4394.9,4394.6,0.234]
[1756536316662,3.2078,4394.9,4394.4,0.234]
[1756536318063,0.25788489,4394.8,4394.5,0.5095]
[1756536318260,3.2078,4394.9,4394.4,0.5386]
[1756536318261,0.25788489,4394.7,4394.4,0.5386]
[1756536318459,0.25788489,4394.7,4393.1,35.9558]
[1756536318460,0.25788489,4394.6,4393.9,0.7435]
[1756536318762,3.2078,4394.0,4393.9,0.5095]
[1756536318963,3.46568489,4394.0,4393.9,0.7435]
[1756536319166,3.2078,4394.0,4393.9,0.7435]
[1756536319365,3.2115,4394.0,4393.9,0.7435]
[1756536321755,3.2078,4394.0,4393.2,0.3046]
[1756536321961,0.0014,4393.9,4393.6,0.3046]
[1756536322264,0.0037,4393.9,4393.8,0.5095]
[1756536326268,0.0023,4393.9,4393.8,0.5095]
[1756536328164,3.2078,4394.0,4393.9,0.3046]
[1756536328370,0.25662379,4394.0,4393.9,0.5095]
[1756536328568,3.2078,4394.5,4394.4,0.2049]
[1756536328870,3.46436569,4394.5,4394.4,0.7435]
[1756536332168,3.46436569,4394.5,4394.4,0.5095]
[1756536332373,3.46436569,4394.5,4394.4,0.7435]
[1756536332971,3.2078,4394.5,4394.4,0.7435]
[1756536333166,3.47545688,4394.5,4394.4,0.7435]
[1756536333574,0.0014,4395.3,4394.4,7.6467]
[1756536333770,0.25684142,4395.2,4395.1,0.2049]
[1756536333967,0.25684142,4395.2,4395.1,0.7435]
[1756536334972,0.25914142,4395.2,4395.1,0.7435]
[1756536335174,0.26054142,4395.2,4395.1,0.3046]
[1756536335367,0.26054142,4395.2,4395.1,0.234]
[1756536335875,0.0037,4394.6,4394.5,0.7435]
[1756536336170,3.2078,4394.7,4394.5,0.7435]
[1756536336375,0.25684142,4394.6,4394.5,0.7435]
[1756536336568,0.26054142,4394.6,4394.5,0.7435]
[1756536337074,0.25684142,4394.6,4394.5,0.7435]
[1756536338477,0.26014142,4394.6,4394.5,0.7435]
[1756536339570,0.26014142,4394.6,4394.5,0.5095]
[1756536339770,0.26014142,4394.6,4394.5,0.7435]
[1756536341077,0.25884142,4394.6,4394.5,0.7435]
[1756536341572,0.26014142,4394.6,4394.5,0.7435]
[1756536343876,0.25943321,4394.6,4394.5,0.7435]
[1756536344076,0.25943321,4394.6,4394.5,0.5095]
[1756536344278,0.25943321,4394.6,4394.5,0.7425]
[1756536344680,0.25813321,4394.6,4394.5,0.7425]
[1756536345978,0.25943321,4394.6,4394.5,0.7425]
[1756536346677,0.25943321,4394.6,4394.5,0.5095]
[1756536346874,0.25943321,4394.6,4394.5,0.7425]
[1756536347786,0.25943321,4394.6,4394.5,0.5095]
[1756536347982,0.25943321,4394.6,4394.5,0.7425]
[1756536348189,0.25943321,4394.6,4394.5,0.3046]
[1756536348388,0.25943321,4394.6,4394.5,0.4947]
[1756536349088,0.25813321,4394.6,4394.5,0.4947]
[1756536349690,0.25613321,4394.6,4394.5,0.4947]
[1756536350892,0.2561259,4394.6,4394.5,0.4947]
[1756536351390,0.2594259,4394.6,4394.5,0.4947]
[1756536352090,0.2581259,4394.6,4394.5,0.4947]
[1756536352392,0.002,4394.1,4394.0,0.233]
[1756536352588,3.4672259,4394.1,4394.0,0.3056]
[1756536353790,3.4659259,4394.1,4393.2,0.3056]
[1756536353992,0.002,4393.9,4393.8,0.1901]
[1756536354292,0.2594259,4393.9,4393.8,0.4957]
[1756536354485,0.002,4393.7,4393.6,0.3056]
[1756536354784,0.002,4393.7,4393.4,0.233]
[1756536354785,0.0013,4393.6,4393.4,0.233]
[1756536354986,3.46731594,4393.5,4393.4,0.7287]
[1756536355191,3.46401594,4393.5,4393.4,0.7287]
[1756536355689,3.46601594,4393.5,4393.4,0.4957]
[1756536355889,3.46401594,4393.5,4393.4,0.7287]
[1756536357093,3.46731594,4393.5,4393.4,0.7287]
[1756536358288,3.46731594,4393.5,4393.4,0.233]
[1756536358590,3.46731594,4393.5,4393.1,32.748]
[1756536358591,0.0013,4393.4,4393.1,32.748]